Workbook

Sheet Sheet1
B1: بحث بالكود | C1: بحث بالاسم | D1: بحث بالسعر
A3: م | B3: الكود | C3: إسم الصنف | D3: السعر العادى | E3: الخدمه | K3: الضريبه | L3: الاجمالى
C5: إسم العميل
A6: 1 | B6: 700 | C6: فراخ بانيه بلدى | D6: 51 | E6: 7.65 | F6: 8.21 | G6: =F6+E6+D6 -> 66.86 | J6: 7.65 | K6: 8.21 | L6: =K6+J6+D6 -> 66.86
A7: 2 | B7: 701 | C7: فراخ بانيه 3 ق | D7: 30 | E7: 4.5 | F7: 4.83 | G7: =F7+E7+D7 -> 39.33 | J7: 4.5 | K7: 4.83 | L7: =K7+J7+D7 -> 39.33
A8: 3 | B8: 702 | C8: سمك فيليه مشوى / مقلى | D8: 55 | E8: 8.25 | F8: 8.86 | G8: 72.11 | J8: 8.25 | K8: 8.86 | L8: 72.11
A9: 4 | B9: 703 | C9: نصف فراخ بصوص الكارى | D9: 55 | E9: 8.25 | F9: 8.86 | G9: 72.11 | J9: 8.25 | K9: 8.86 | L9: 72.11
A10: 5 | B10: 704 | C10: نصف فراخ مشوى | D10: 53 | E10: 7.95 | F10: 8.53 | G10: 69.48 | J10: 7.95 | K10: 8.53 | L10: 69.48
A11: 6 | B11: 705 | C11: فرخه مشويه | D11: 100 | E11: 15 | F11: 16.1 | G11: 131.1 | J11: 15 | K11: 16.1 | L11: 131.1
A12: 7 | B12: 706 | C12: اسكالوب ناتير | D12: 70 | E12: 10.5 | F12: 11.27 | G12: 91.77 | J12: 10.5 | K12: 11.27 | L12: 91.77
A13: 8 | B13: 707 | C13: اسكالوب بانيه | D13: 70 | E13: 10.5 | F13: 11.27 | G13: 91.77 | J13: 10.5 | K13: 11.27 | L13: 91.77
A14: 9 | B14: 708 | C14: اسكالوب كوردن بلو ( 1 ق ) | D14: 80 | E14: 12 | F14: 12.88 | G14: 104.88 | J14: 12 | K14: 12.88 | L14: 104.88
A15: 10 | B15: 709 | C15: بيكاتا ( 3 ق ) | D15: 80 | E15: 12 | F15: 12.88 | G15: 104.88 | J15: 12 | K15: 12.88 | L15: 104.88
A16: 11 | B16: 710 | C16: بيكاتا صوص ليمون ( 3 ق) | D16: 70 | E16: 10.5 | F16: 11.27 | G16: 91.77 | J16: 10.5 | K16: 11.27 | L16: 91.77
A17: 12 | B17: 711 | C17: ميكس جريل عادى | D17: 80 | E17: 12 | F17: 12.88 | G17: 104.88 | J17: 12 | K17: 12.88 | L17: 104.88
A18: 13 | B18: 712 | C18: ميكس جريل مميز | D18: 120 | E18: 18 | F18: 19.32 | G18: 157.32 | J18: 18 | K18: 19.32 | L18: 157.32
A19: 14 | B19: 713 | C19: فيليه صوص مشروم | D19: 75 | E19: 11.25 | F19: 12.08 | G19: 98.33 | J19: 11.25 | K19: 12.08 | L19: 98.33
A20: 15 | B20: 714 | C20: فيليه بالصوص فلفل | D20: 75 | E20: 11.25 | F20: 12.08 | G20: 98.33 | J20: 11.25 | K20: 12.08 | L20: 98.33
A21: 16 | B21: 715 | C21: ريش سوتيه ( 2 ق ) | D21: 175 | E21: 26.25 | F21: 28.18 | G21: 229.43 | J21: 26.25 | K21: 28.18 | L21: 229.43
A22: 17 | B22: 716 | C22: كبده مشوى | D22: 65 | E22: 9.75 | F22: 10.47 | G22: 85.22 | J22: 9.75 | K22: 10.47 | L22: 85.22
A23: 18 | B23: 717 | C23: كبابا فقط | D23: 85 | E23: 12.75 | F23: 13.69 | G23: 111.44 | J23: 12.75 | K23: 13.69 | L23: 111.44
A24: 19 | B24: 718 | C24: كبابا وكفته | D24: 72 | E24: 10.8 | F24: 11.59 | G24: 94.39 | J24: 10.8 | K24: 11.59 | L24: 94.39
A25: 20 | B25: 719 | C25: كفته فقط | D25: 44 | E25: 6.6 | F25: 7.08 | G25: 57.68 | J25: 6.6 | K25: 7.08 | L25: 57.68
A26: 21 | B26: 720 | C26: اسكالوب صوص ليمون | D26: 75 | E26: 11.25 | F26: 12.08 | G26: 98.33 | J26: 11.25 | K26: 12.08 | L26: 98.33
A27: 22 | B27: 721 | C27: استيك مشوى / بالمشروم | D27: 75 | E27: 11.75 | F27: 12.08 | G27: 98.83 | J27: 11.75 | K27: 12.08 | L27: 98.83
A28: 23 | B28: 722 | C28: تشيكن كوردن بلو ( 2 ق ) | D28: 75 | E28: 11.25 | F28: 12.08 | G28: 98.33 | J28: 11.25 | K28: 12.08 | L28: 98.33
A29: 24 | B29: 723 | C29: شيش كباب | D29: 80 | E29: 12 | F29: 12.88 | G29: 104.88 | J29: 12 | K29: 12.88 | L29: 104.88
A30: 25 | B30: 724 | C30: سيخ شيش كباب | D30: 40 | E30: 6 | F30: 6.44 | G30: 52.44 | J30: 6 | K30: 6.44 | L30: 52.44
A31: 26 | B31: 725 | C31: سيخ شيش طاووك | D31: 30 | E31: 4.5 | F31: 4.83 | G31: 39.33 | J31: 4.5 | K31: 4.83 | L31: 39.33
A32: 27 | B32: 726 | C32: شيش طاووك | D32: 60 | E32: 6 | F32: 9.66 | G32: 75.66 | J32: 9 | K32: 9.66 | L32: 78.66
A33: 28 | B33: 727 | C33: لحم بارده بالكيلو | D33: 210 | E33: 31.5 | F33: 33.81 | G33: 275.31 | J33: 31.5 | K33: 33.81 | L33: 275.31
A34: 29 | B34: 728 | C34: كفته بالكيلو | D34: 175 | E34: 26.25 | F34: 28.18 | G34: 229.43 | J34: 26.25 | K34: 28.18 | L34: 229.43
A35: 30 | B35: 729 | C35: كباب بالكيلو | D35: 340 | E35: 51 | F35: 54.74 | G35: 445.74 | J35: 51 | K35: 54.74 | L35: 445.74
A36: 31 | B36: 730 | C36: كباب وكفته بالكيلو | D36: 260 | E36: 39 | F36: 41.86 | G36: 340.86 | J36: 39 | K36: 41.86 | L36: 340.86
A37: 32 | B37: 731 | C37: سمك فيليه بالكيلو | D37: 165 | E37: 24.75 | F37: 26.57 | G37: 216.32 | J37: 24.75 | K37: 26.57 | L37: 216.32
A38: 33 | B38: 732 | C38: بيكاتا بالكيلو | D38: 330 | E38: 49.5 | F38: 53.13 | G38: 432.63 | J38: 49.5 | K38: 53.13 | L38: 432.63
A39: 34 | B39: 733 | C39: كبده مشوى بالكيلو | D39: 215 | E39: 32.25 | F39: 34.62 | G39: 281.87 | J39: 32.25 | K39: 34.62 | L39: 281.87
A40: 35 | B40: 734 | C40: فيليه بوافر بالكيلو | D40: 330 | E40: 49.5 | F40: 53.13 | G40: 432.63 | J40: 49.5 | K40: 53.13 | L40: 432.63
A41: 36 | B41: 735 | C41: كباب باللوز بالكيلو | D41: 310 | E41: 46.5 | F41: 49.91 | G41: 406.41 | J41: 46.5 | K41: 49.91 | L41: 406.41
A42: 37 | B42: 736 | C42: فراخ بانيه بالكيلو | D42: 175 | E42: 26.25 | F42: 28.18 | G42: 229.43 | J42: 26.25 | K42: 28.18 | L42: 229.43
A43: 38 | B43: 737 | C43: فرد حمام محشى | D43: 50 | E43: 7.5 | F43: 8.05 | G43: 65.55 | J43: 7.5 | K43: 8.05 | L43: 65.55
A44: 39 | B44: 738 | C44: كفته داود باشا بالكيلو | D44: 165 | E44: 24.75 | F44: 26.57 | G44: 216.32 | J44: 24.75 | K44: 26.57 | L44: 216.32
A45: 40 | B45: 739 | C45: كباب حله بالكيلو | D45: 280 | E45: 42 | F45: 45.08 | G45: 367.08 | J45: 42 | K45: 45.08 | L45: 367.08
A46: 41 | B46: 901 | C46: سفنديش داود باشا | D46: 700 | J46: 105 | K46: 112.7 | L46: 917.7
A47: 42 | B47: 902 | C47: سفنديش فراخ بانيه | D47: 650 | J47: 97.5 | K47: 104.65 | L47: 852.15
A48: 43 | B48: 903 | C48: سفنديش كفته مشويه | D48: 850 | J48: 127.5 | K48: 136.85 | L48: 1114.35
A49: 44 | B49: 904 | C49: سفنديش ضلمه مشكله | D49: 350 | J49: 52.5 | K49: 56.35 | L49: 458.85
A50: 45 | B50: 905 | C50: سفنديش ورق عنب | D50: 300 | J50: 45 | K50: 48.3 | L50: 393.3
A51: 46 | B51: 906 | C51: سفنديش كانلونى | D51: 400 | J51: 60 | K51: 64.4 | L51: 524.4
A52: 47 | B52: 907 | C52: سفنديش مكرونه فرن | D52: 400 | J52: 60 | K52: 64.4 | L52: 524.4
A53: 48 | B53: 908 | C53: سفنديش رقاق لحمد مفروم | D53: 350 | J53: 52.5 | K53: 56.35 | L53: 458.85
A54: 49 | B54: 909 | C54: سفنديش خضار سوتيه | D54: 150 | J54: 22.5 | K54: 24.15 | L54: 196.65
A55: 50 | B55: 910 | C55: سفنديش بيكاتا | D55: 900 | J55: 135 | K55: 144.9 | L55: 1179.9
A56: 51 | B56: 911 | C56: سفنديش فراخ B بلدى | D56: 1162.5 | J56: 174.38 | K56: 187.16 | L56: 1524.04
A57: 52 | B57: 912 | C57: سفنديش فيليه بوافر | D57: 900 | J57: 135 | K57: 144.9 | L57: 1179.9
A58: 53 | B58: 913 | C58: سفنديش سمك فيليه | D58: 650 | J58: 97.5 | K58: 104.65 | L58: 852.15
A59: 54 | B59: 914 | C59: سفنديش بوم الاكريم | D59: 200 | J59: 30 | K59: 32.2 | L59: 262.2
A60: 55 | B60: 915 | C60: سفنديش ارز خلطه | D60: 200 | J60: 30 | K60: 32.2 | L60: 262.2
A61: 56 | B61: 916 | C61: سفنديش ارز ابيض | D61: 150 | J61: 22.5 | K61: 24.15 | L61: 196.65
A62: 57 | B62: 917 | C62: سفنديش ارز بيلا | D62: 175 | J62: 26.25 | K62: 28.18 | L62: 229.43
A63: 58 | B63: 918 | C63: سفنديش ارز بالكارى | D63: 165 | J63: 24.75 | K63: 26.57 | L63: 216.32
A64: 59 | B64: 919 | C64: سفنديش فته ساده | D64: 250 | J64: 37.5 | K64: 40.25 | L64: 327.75
A65: 60 | B65: 920 | C65: سفنديش ام على صغير | D65: 150 | J65: 22.5 | K65: 24.15 | L65: 196.65
A66: 61 | B66: 921 | C66: سفنديش ام على وسط | D66: 250 | J66: 37.5 | K66: 40.25 | L66: 327.75
A67: 62 | B67: 923 | C67: سفنديش ام على كبير | D67: 400 | J67: 60 | K67: 64.4 | L67: 524.4
A68: 63 | B68: 985 | C68: سفنديش لازنيا | D68: 420 | J68: 63 | K68: 67.62 | L68: 550.62
A69: 64 | B69: 986 | C69: اوزى | D69: 4200 | J69: 630 | K69: 676.2 | L69: 5506.2
A70: 65 | B70: 987 | C70: دندى رستو بالأرز خلطه | D70: 850 | J70: 127.5 | K70: 136.85 | L70: 1114.35
A71: 66 | B71: 988 | C71: دندى رستو بالارز بسمتى | D71: 875 | J71: 131.25 | K71: 140.88 | L71: =K71+J71+D71 -> 1147.13
A72: 67 | B72: 989 | C72: مرايا روزبيف | D72: 775 | J72: 116.25 | K72: 124.78 | L72: 1016.03
A73: 68 | B73: 990 | C73: مرايا دندى | D73: 875 | J73: 131.25 | K73: 140.88 | L73: 1147.13
A74: 69 | B74: 991 | C74: مرايا جبنه | D74: 340 | J74: 51 | K74: 54.74 | L74: 445.74
A75: 70 | B75: 992 | C75: فخده بتلو | D75: 2000 | J75: 300 | K75: 322 | L75: 2622
A76: 71 | B76: 993 | C76: طلب رقاق لحم مفروم | D76: 25 | J76: 3.75 | K76: 4.03 | L76: 32.78
A77: 72 | B77: 791 | C77: شوربة لسان عصفور | D77: 7.5 | E77: 1.13 | F77: 1.21 | G77: =F77+E77+D77 -> 9.84 | J77: 1.13 | K77: 1.21 | L77: 9.83
A78: 73 | B78: 792 | C78: شوربة شعريه | D78: 7.5 | E78: 1.13 | F78: 1.21 | G78: 9.84 | J78: 1.13 | K78: 1.21 | L78: 9.83
A79: 74 | B79: 793 | C79: شوربة خضار | D79: 7.5 | E79: 1.13 | F79: 1.21 | G79: 9.84 | J79: 1.13 | K79: 1.21 | L79: 9.83
A80: 75 | B80: 794 | C80: شوربة عدس | D80: 8.5 | E80: 1.27 | F80: 1.37 | G80: 11.14 | J80: 1.27 | K80: 1.37 | L80: 11.14
A81: 76 | B81: 795 | C81: شوربه طماطم | D81: 8.5 | E81: 1.27 | F81: 1.37 | G81: 11.14 | J81: 1.27 | K81: 1.37 | L81: 11.14
A82: 77 | B82: 796 | C82: شوربة دجاج كريمه | D82: 12 | E82: 1.8 | F82: 1.93 | G82: 15.73 | J82: 1.8 | K82: 1.93 | L82: 15.73
A83: 78 | B83: 1793 | C83: بولة ملوخيه | D83: 12 | E83: 1.8 | F83: 0 | G83: 13.8 | J83: 1.8 | K83: 0 | L83: 13.8
A84: 79 | B84: 851 | C84: طاجن خضار مشكل س (1 فرد) | D84: 10 | J84: 1.5 | K84: 1.61 | L84: 13.11
A85: 80 | B85: 852 | C85: طاجن خضار مشكل س ( كبير ) | D85: 40 | J85: 6 | K85: 6.44 | L85: 52.44
A86: 81 | B86: 853 | C86: طاجن خضار مشكل لحم ( 1 فرد ) | D86: 30 | J86: 4.5 | K86: 4.83 | L86: 39.33
A87: 82 | B87: 854 | C87: طاجن خضار مشكل لحم ( كبير ) | D87: 95 | J87: 14.25 | K87: 15.3 | L87: 124.55
A88: 83 | B88: 855 | C88: طاجن مسقعه مفروم ( 1 فرد ) | D88: 16 | J88: 2.4 | K88: 2.58 | L88: 20.98
A89: 84 | B89: 856 | C89: طاجن مسقعه مفروم ( كبير ) | D89: 65 | J89: 9.75 | K89: 10.47 | L89: 85.22
A90: 85 | B90: 857 | C90: طاجن كوارع كبير | D90: 250 | J90: 37.5 | K90: 40.25 | L90: 327.75
A91: 86 | B91: 858 | C91: طاجن عكاوى | D91: 280 | J91: 42 | K91: 45.08 | L91: 367.08
A92: 87 | B92: 859 | C92: طاجن باميه س ( 1 فرد ) | D92: 17 | J92: 2.55 | K92: 2.74 | L92: 22.29
A93: 88 | B93: 860 | C93: طاجن باميه لحم ( كبير ) | D93: 105 | J93: 15.75 | K93: 16.91 | L93: 137.66
A94: 89 | B94: 863 | C94: طاجن كوارع صغير | D94: 145 | J94: 21.75 | K94: 23.35 | L94: 190.1
A95: 90 | B95: 864 | C95: طاجن كشك بالفراخ ( كبير ) | D95: 70 | J95: 10.5 | K95: 11.27 | L95: 91.77
A96: 91 | B96: 995 | C96: طاجن بطاطس ( 1 فرد ) | D96: 15 | J96: 2.25 | K96: 2.42 | L96: 19.66
A97: 92 | B97: 751 | C97: ارز ابيض بالكيلو | D97: 25 | J97: 3.75 | K97: 4.03 | L97: 32.77
A98: 93 | B98: 752 | C98: ارز ابيض بالشعريه | D98: 28 | J98: 4.2 | K98: 4.51 | L98: 36.71
A99: 94 | B99: 753 | C99: ارز بالكارى بالكيلو | D99: 28 | J99: 4.2 | K99: 4.51 | L99: 36.71
A100: 95 | B100: 754 | C100: ارز بالخلطه بالكيلو | D100: 40 | J100: 6 | K100: 6.44 | L100: 52.44
A101: 96 | B101: 755 | C101: ارز بسمتى بالكيلو | D101: 55 | J101: 8.25 | K101: 8.86 | L101: 72.11
A102: 97 | B102: 756 | C102: ارز ابيض ساده | D102: 6.5 | J102: 0.97 | K102: 1.05 | L102: 8.52
A103: 98 | B103: 757 | C103: ارز بالكارى بالكيلو | D103: 6 | J103: 0.9 | K103: 0.97 | L103: 7.87
A104: 99 | B104: 758 | C104: ارز بلونيز | D104: 7 | J104: 1.05 | K104: 1.13 | L104: 9.18
A105: 100 | B105: 759 | C105: ارز خلطه | D105: 10 | J105: 1.5 | K105: 1.61 | L105: 13.11
A106: 101 | B106: 760 | C106: ارز بالكبده والكلاوى | D106: 7 | J106: 1.05 | K106: 1.13 | L106: 9.18
A107: 102 | B107: 761 | C107: اسباجتى صوصو طماطم | D107: 8 | J107: 1.2 | K107: 1.29 | L107: 10.49
A108: 103 | B108: 762 | C108: مكرونه فرن | D108: 15 | J108: 2.25 | K108: 2.42 | L108: 19.66
A109: 104 | B109: 763 | C109: اسباجتى لحمه مفروم | D109: 11 | J109: 1.65 | K109: 1.77 | L109: 14.42
A110: 105 | B110: 764 | C110: لازانيا | D110: 18 | J110: 2.7 | K110: 2.9 | L110: 23.6
A111: 106 | B111: 765 | C111: مكرونه نجرسكو | D111: 20 | J111: 3 | K111: 3.22 | L111: 26.22
A112: 107 | B112: 766 | C112: فته ساده | D112: 10 | J112: 1.5 | K112: 1.61 | L112: 13.11
A113: 108 | B113: 767 | C113: فته بالموزه | D113: 95 | J113: 14.25 | K113: 15.3 | L113: 124.55
A114: 109 | B114: 768 | C114: طاجن نجرسكو ( بايركس) | D114: 75 | J114: 11.25 | K114: 12.08 | L114: 98.33
A115: 110 | B115: 769 | C115: طاجن مكرونه فرن | D115: 65 | J115: 9.75 | K115: 10.47 | L115: 85.22
A116: 111 | B116: 770 | C116: شعريه مكسرات بالكيلو | D116: 30 | J116: 4.5 | K116: 4.83 | L116: 39.33
A117: 112 | B117: 771 | C117: اسباجتى وايت صوص | D117: 15 | J117: 2.25 | K117: 2.42 | L117: 19.66
A118: 113 | B118: 776 | C118: ارز بسمتى بالكيلو | D118: 11 | J118: 1.65 | K118: 1.77 | L118: 14.42
A119: 114 | B119: 778 | C119: ارز بالجمبرى | D119: 18 | J119: 2.7 | K119: 2.9 | L119: 23.6
A120: 115 | B120: 825 | C120: طبق اورديفل | D120: 18.5 | J120: 2.77 | K120: 2.98 | L120: 24.25
A121: 116 | B121: 826 | C121: كبيبه | D121: 7 | J121: 1.05 | K121: 1.13 | L121: 9.18
A122: 117 | B122: 829 | C122: سمبوسه | D122: 6 | J122: 0.9 | K122: 0.97 | L122: 7.87
A123: 118 | B123: 830 | C123: ورق عنب | D123: 65 | J123: 9.75 | K123: 10.47 | L123: 85.22
A124: 119 | B124: 831 | C124: ضلمه مشكل بالكيلو | D124: 55 | J124: 8.25 | K124: 8.86 | L124: 72.11
A125: 120 | B125: 898 | C125: ممبار بالكيلو | D125: 75 | J125: 11.25 | K125: 12.08 | L125: 98.33
A126: 121 | B126: 831 | C126: سبرنج رولز بالكيلو | D126: 75 | J126: 11.25 | K126: 12.08 | L126: 98.33
A127: 122 | B127: 898 | C127: طلب كانيلونى | D127: 9 | J127: 1.35 | K127: 1.45 | L127: 11.8
A128: 123 | B128: 201 | C128: بيتزا سوبريم وسط | D128: 40 | J128: 6 | K128: 0 | L128: 46
A129: 124 | B129: 202 | C129: بيتزا سوبريم كبير | D129: 55 | J129: 8.25 | K129: 0 | L129: 63.25
A130: 125 | B130: 203 | C130: بيتزا بسطرمه وسط | D130: 40 | J130: 6 | K130: 0 | L130: 46
A131: 126 | B131: 204 | C131: بيتزا بسطرمه كبير | D131: 55 | J131: 8.25 | K131: 0 | L131: 63.25
A132: 127 | B132: 205 | C132: بيتزا لحم مفروم وسط | D132: 40 | J132: 6 | K132: 0 | L132: 46
A133: 128 | B133: 206 | C133: بيتزا لحم مفروم كبير | D133: 50 | J133: 7.5 | K133: 0 | L133: 57.5
A134: 129 | B134: 207 | C134: بيتزا مشروم وسط | D134: 35 | J134: 5.25 | K134: 0 | L134: 40.25
A135: 130 | B135: 208 | C135: بيتزا مشروم كبير | D135: 45 | J135: 6.75 | K135: 0 | L135: =K135+J135+D135 -> 51.75
A136: 131 | B136: 209 | C136: بيتزا فراخ وسط | D136: 40 | J136: 6 | K136: 0 | L136: 46
A137: 132 | B137: 210 | C137: بيتزا فراخ كبير | D137: 55 | J137: 8.25 | K137: 0 | L137: 63.25
A138: 133 | B138: 211 | C138: بيتزا سوسيس وسط | D138: 40 | J138: 6 | K138: 0 | L138: 46
A139: 134 | B139: 212 | C139: بيتزا سوسيس كبير | D139: 55 | J139: 8.25 | K139: 0 | L139: 63.25
A140: 135 | B140: 214 | C140: بيتزا تونه وسط | D140: 55 | J140: 8.25 | K140: 0 | L140: 63.25
A141: 136 | B141: 215 | C141: بيتزا تونه كبير | D141: 65 | J141: 9.75 | K141: 0 | L141: 74.75
A142: 137 | B142: 216 | C142: بيتزا مارجريتا وسط | D142: 35 | J142: 5.25 | K142: 0 | L142: 40.25
A143: 138 | B143: 217 | C143: بيتزا مارجريتا كبير | D143: 45 | J143: 6.75 | K143: 0 | L143: 51.75
A144: 139 | B144: 218 | C144: بيتزا خضراوات وسط | D144: 30 | J144: 4.5 | K144: 0 | L144: 34.5
A145: 140 | B145: 219 | C145: بيتزا خضراوات كبير | D145: 40 | J145: 6 | K145: 0 | L145: 46
A146: 141 | B146: 220 | C146: طلب اضافه وسط | D146: 7 | J146: 1.05 | K146: 0 | L146: 8.05
A147: 142 | B147: 221 | C147: طلب اضافه كبير | D147: 10 | J147: 1.5 | K147: 0 | L147: 11.5
A148: 143 | B148: 222 | C148: بيتزا جمبرى كبير | D148: 75 | J148: 11.25 | K148: 0 | L148: 86.25
A149: 144 | B149: 223 | C149: بيتزا جمبرى وسط | D149: 65 | J149: 9.75 | K149: 0 | L149: 74.75
A150: 145 | B150: 801 | C150: ساندوتش جبنه بيضاء | D150: 5 | J150: 0.75 | K150: 0 | L150: 5.75
A151: 146 | B151: 802 | C151: ساندوتش جبنه رومى | D151: 8 | J151: 1.2 | K151: 0 | L151: 9.2
A152: 147 | B152: 803 | C152: ساندوتش بيض مسلوق | D152: 6 | J152: 0.9 | K152: 0 | L152: 6.9
A153: 148 | B153: 804 | C153: ساندوتش بيض اومليت | D153: 6 | J153: 0.9 | K153: 0 | L153: 6.9
A154: 149 | B154: 805 | C154: ساندوتيش مربى / عسل | D154: 3.5 | J154: 0.53 | K154: 0 | L154: 4.03
A155: 150 | B155: 806 | C155: ساندوتش شاورمه لحم ص | D155: 15 | J155: 2.25 | K155: 0 | L155: 17.25
A156: 151 | B156: 807 | C156: ساندوتش شاورمه لحم ك | D156: 22.5 | J156: 3.38 | K156: 0 | L156: 25.88
A157: 152 | B157: 808 | C157: ساندوتش شيش طاووك | D157: 25 | J157: 3.75 | K157: 0 | L157: 28.75
A158: 153 | B158: 809 | C158: ساندوتش فراخ بانيه | D158: 20 | J158: 3 | K158: 0 | L158: 23
A159: 154 | B159: 810 | C159: ساندوتيش هوت دوج | D159: 18 | J159: 2.7 | K159: 0 | L159: 20.7
A160: 155 | B160: 811 | C160: ساندوتش فاهيتا لحم | D160: 25 | J160: 3.75 | K160: 0 | L160: =K160+J160+D160 -> 28.75
A161: 156 | B161: 812 | C161: ساندوتش روزبيف | D161: 18 | J161: 2.7 | K161: 0 | L161: =K161+J161+D161 -> 20.7
A162: 157 | B162: 813 | C162: ساندوتش لحمه بارده سواريه | D162: 10 | J162: 1.5 | K162: 0 | L162: 11.5
A163: 158 | B163: 814 | C163: ساندوتيش كفته | D163: 20 | J163: 3 | K163: 0 | L163: 23
A164: 159 | B164: 815 | C164: رغيف حواوشى | D164: 20 | J164: 3 | K164: 0 | L164: 23
A165: 160 | B165: 816 | C165: ساندوتش جبنه فلامنك | D165: 8.5 | J165: 1.27 | K165: 0 | L165: 9.78
A166: 161 | B166: 817 | C166: ساندوتش لانشون | D166: 8 | J166: 1.2 | K166: 0 | L166: 9.2
A167: 162 | B167: 818 | C167: ساندوتش فراخ بلدى B بلدى | D167: 25 | J167: 3.75 | K167: 0 | L167: 28.75
A168: 163 | B168: 819 | C168: ساندوتش فراخ B سواريه | D168: 15 | J168: 2.25 | K168: 0 | L168: 17.25
A169: 164 | B169: 832 | C169: ساندوتش برجر | D169: 13.5 | J169: 2.02 | K169: 0 | L169: 15.53
A170: 165 | B170: 833 | C170: ساندوتش تشيز برجر | D170: 15 | J170: 2.25 | K170: 0 | L170: 17.25
A171: 166 | B171: 834 | C171: ساندوتش برجر بيض + جبنه | D171: 20 | J171: 3 | K171: 0 | L171: 23
A172: 167 | B172: 835 | C172: ساندوتش برجر بيض | D172: 17 | J172: 2.55 | K172: 0 | L172: 19.55
A173: 168 | B173: 837 | C173: س شاورمه فراخ ص | D173: 15 | J173: 2.25 | K173: 0 | L173: 17.25
A174: 169 | B174: 838 | C174: س شاورمه فراخ ك | D174: 22.5 | J174: 3.38 | K174: 0 | L174: 25.88
A175: 170 | B175: 839 | C175: ساندوتش فاهيتا فراخ | D175: 25 | J175: 3.75 | K175: 0 | L175: 28.75
A176: 171 | B176: 843 | C176: ساندوتش جبنه شيدر | D176: 8 | J176: 1.2 | K176: 0 | L176: 9.2
A177: 172 | B177: 844 | C177: ساندوتش بطاطس | D177: 10 | J177: 1.5 | K177: 0 | L177: 11.5
A178: 173 | B178: 1006 | C178: سجق مشوى بالكيلو | D178: 140 | J178: 21 | K178: 22.54 | L178: 183.54
A179: 174 | B179: 951 | C179: بوم فريت | D179: 10 | J179: 1.5 | K179: 0 | L179: 11.5
A180: 175 | B180: 952 | C180: فول بالزبده | D180: 5.5 | J180: 0.82 | K180: 0.89 | L180: 7.21
A181: 176 | B181: 953 | C181: فول بالزيت / طماطم | D181: 6 | J181: 0.9 | K181: 0.97 | L181: 7.87
A182: 177 | B182: 954 | C182: بيض مسلوق 2 بيضه | D182: 7.5 | J182: 1.13 | K182: 1.21 | L182: 9.83
A183: 178 | B183: 955 | C183: بيض اومليت / عيون | D183: 7.5 | J183: 1.13 | K183: 1.21 | L183: 9.83
A184: 179 | B184: 956 | C184: بيض اسبانيول | D184: 8.5 | J184: 1.27 | K184: 1.37 | L184: 11.14
A185: 180 | B185: 957 | C185: طبق جبنه بيضاء | D185: 8 | J185: 1.2 | K185: 1.29 | L185: 10.49
A186: 181 | B186: 958 | C186: طبق جبنه رومى | D186: 15 | J186: 2.25 | K186: 2.42 | L186: 19.66
A187: 182 | B187: 959 | C187: طبق جبنه مشكل | D187: 15 | J187: 2.25 | K187: 2.42 | L187: 19.66
A188: 183 | B188: 960 | C188: كوب زبادى | D188: 4.5 | J188: 0.67 | K188: 0.72 | L188: 5.9
A189: 184 | B189: 961 | C189: مربى / عسل | D189: 2.5 | J189: 0.38 | K189: 0.4 | L189: 3.28
A190: 185 | B190: 962 | C190: زبده قطعه | D190: 5 | J190: 0.75 | K190: 0.81 | L190: 6.55
A191: 186 | B191: 963 | C191: كلوب سندوتش بالكيلو | D191: 100 | J191: 15 | K191: 16.1 | L191: 131.1
A192: 187 | B192: 964 | C192: مينى ساندوتش بالكيلو | D192: 90 | J192: 13.5 | K192: 14.49 | L192: 117.99
A193: 188 | B193: 965 | C193: كنابيه | D193: 75 | J193: 11.25 | K193: 12.08 | L193: 98.33
A194: 189 | B194: 996 | C194: طبق بطاطس مهروسه | D194: 7 | J194: 1.05 | K194: 1.13 | L194: 9.18
A195: 190 | B195: 997 | C195: طبق جبنه بيضاء طماطم | D195: 10 | J195: 1.5 | K195: 1.61 | L195: 13.11
A196: 191 | B196: 998 | C196: فول بزيت الذره | D196: 5.5 | J196: 0.82 | K196: 0.89 | L196: 7.21
A197: 192 | B197: 999 | C197: فول بزيت الزيتون | D197: 8 | J197: 1.2 | K197: 1.29 | L197: 10.49
A198: 193 | B198: 1965 | C198: بولة بصاره | D198: 8 | J198: 1.2 | K198: 1.29 | L198: 10.49
A199: 194 | B199: 1967 | C199: قرص طعميه | D199: 2.6 | J199: 0.39 | K199: 0 | L199: 2.99
A200: 195 | B200: 9960 | C200: زبادى بالعسل | D200: 9 | J200: 1.35 | K200: 0 | L200: 10.35
A201: 196 | B201: 966 | C201: تسويه لحوم بالكيلو | D201: 20 | J201: 3 | K201: 3.22 | L201: 26.22
A202: 197 | B202: 967 | C202: رسم تغليف | D202: 10 | J202: 1.5 | K202: 0 | L202: 11.5
... 268 more rows
